bitfinex-derivatives/quotes_SOLF0:USTF0_20250909
["timestamp","ask_amount","ask_price","bid_price","bid_amount"]
[1757418029423,240.64696358,217.83,217.77,0.03154263]
[1757418029620,7.43,217.82,217.77,0.03154263]
[1757418031841,323.0,217.96,217.77,0.03154263]
[1757418032040,7.43,217.85,217.77,1.96788284]
[1757418032241,7.43,217.85,217.77,1.93634021]
[1757418032539,7.43,217.85,217.79,0.02960172]
[1757418033941,7.43,217.85,217.79,7.71960172]
[1757418034141,7.43,217.85,217.79,9.65594193]
[1757418034541,7.43,217.85,217.79,7.71960172]
[1757418034740,7.43,217.85,217.79,9.65594193]
[1757418036142,7.43,217.85,217.82,7.69]
[1757418039636,7.43,217.88,217.82,7.69]
[1757418041043,7.43,217.9,217.83,1.93634021]
[1757418041639,7.43,217.9,217.84,0.03348569]
[1757418041839,7.43,217.88,217.84,0.03348569]
[1757418042039,1.93634021,217.89,217.84,0.03348569]
[1757418042240,7.43,217.88,217.8,1.93634021]
[1757418042543,1.93634021,217.89,217.84,0.03434215]
[1757418043034,7.43,217.88,217.84,0.03434215]
[1757418043639,7.28,218.01,217.84,0.03434215]
[1757418043837,1.93634021,217.89,217.84,0.03434215]
[1757418044042,1.93634021,217.89,217.82,1.93634021]
[1757418044043,7.28,217.88,217.82,1.93634021]
[1757418044243,7.28,217.88,217.84,0.03042813]
[1757418044737,1.93634021,217.89,217.84,0.03042813]
[1757418044940,7.28,217.88,217.84,0.03042813]
[1757418045141,1.93634021,217.89,217.84,0.03042813]
[1757418045641,7.28,217.88,217.84,0.03042813]
[1757418045843,1.93634021,217.89,217.84,0.03042813]
[1757418046138,7.28,217.9,217.84,0.03042813]
[1757418046534,7.28,217.9,217.81,7.65]
[1757418046739,3.01468227,217.94,217.85,0.03470505]
[1757418047036,7.28,217.93,217.85,0.03470505]
[1757418049447,7.28,217.93,217.86,7.65]
[1757418050537,7.28,217.93,217.85,0.03470505]
[1757418054848,7.28,217.93,217.85,7.68470505]
[1757418056247,7.28,217.93,217.85,0.03470505]
[1757418060256,10.29468227,217.93,217.85,0.03470505]
[1757418066356,7.28,217.89,217.85,0.03470505]
[1757418066755,7.28,217.89,217.8,7.65]
[1757418066959,7.28,217.89,217.85,0.0306794]
[1757418068566,7.28,217.86,217.85,0.0306794]
[1757418072965,3.01468227,217.91,217.85,0.0306794]
[1757418073163,7.28,217.91,217.85,7.6806794]
[1757418074567,7.58,217.93,217.85,7.6806794]
[1757418074963,7.58,217.93,217.85,7.65]
[1757418075170,7.58,217.93,217.87,0.03328264]
[1757418103500,10.59468227,217.93,217.87,0.03328264]
[1757418103798,3.01468227,217.9,217.87,0.03328264]
[1757418104000,7.22,217.89,217.87,0.03328264]
[1757418104495,3.01468227,217.9,217.87,0.03328264]
[1757418104894,7.22,217.89,217.87,0.03328264]
[1757418105392,3.01468227,217.9,217.87,0.03328264]
[1757418105597,7.22,217.89,217.87,0.03328264]
[1757418105898,3.01468227,217.9,217.87,0.03328264]
[1757418106100,7.22,217.89,217.87,0.03328264]
[1757418106291,3.01468227,217.9,217.87,0.03328264]
[1757418106499,5.12429034,217.91,217.87,7.70328264]
[1757418106500,7.22,217.91,217.87,7.70328264]
[1757418106799,177.38434168,217.92,217.87,0.03328264]
[1757418106998,7.22,217.91,217.87,0.03328264]
[1757418107602,7.22,217.91,217.88,7.67]
[1757418108295,7.22,217.91,217.87,0.03328264]
[1757418108493,177.38434168,217.92,217.87,7.70328264]
[1757418108695,7.22,217.91,217.87,7.70328264]
[1757418109300,177.38434168,217.92,217.87,7.70328264]
[1757418109604,184.60434168,217.92,217.88,7.67]
[1757418109803,7.22,217.91,217.88,7.67]
[1757418110104,7.22,217.91,217.87,0.03328264]
[1757418110303,7.22,217.91,217.87,7.70328264]
[1757418110699,177.38434168,217.92,217.87,7.70328264]
[1757418110905,7.22,217.91,217.88,7.67]
[1757418111507,7.22,217.91,217.87,7.70328264]
[1757418111708,177.38434168,217.92,217.87,7.70328264]
[1757418112408,7.22,217.91,217.87,0.03328264]
[1757418112610,7.22,217.91,217.88,7.67]
[1757418113914,177.38434168,217.92,217.88,7.67]
[1757418114211,7.22,217.91,217.87,0.03328264]
[1757418114412,7.22,217.91,217.87,7.70328264]
[1757418114611,177.38434168,217.92,217.87,7.70328264]
[1757418114815,7.22,217.91,217.87,7.70328264]
[1757418115008,177.38434168,217.92,217.87,7.70328264]
[1757418115606,9.14905017,217.91,217.87,0.03328264]
[1757418115816,1.92905017,217.89,217.87,0.03328264]
[1757418116015,7.22,217.88,217.87,0.03328264]
[1757418126127,7.22,217.88,217.79,7.67]
[1757418126421,9.14905017,217.83,217.76,4.1326]
[1757418126626,9.14905017,217.83,217.77,7.67]
[1757418126826,7.22,217.83,217.77,7.67]
[1757418127126,1.92905017,217.85,217.77,6.06135017]
[1757418127330,1.92905017,217.85,217.78,7.67]
[1757418127621,182.53641778,217.92,217.85,7.67]
[1757418127827,177.38434168,217.92,217.86,4.48282434]
[1757418128028,7.22,217.91,217.88,7.67]
[1757418128228,7.22,217.91,217.89,4.48282434]
[1757418128527,7.22,217.91,217.9,4.48282434]
[1757418128715,7.22,217.91,217.88,7.67]
[1757418128918,7.22,217.91,217.89,4.40324711]
[1757418129121,7.22,217.91,217.88,7.67]
[1757418129318,7.22,217.91,217.89,4.40324711]
[1757418129523,7.22,217.91,217.88,7.67]
[1757418129723,7.22,217.91,217.89,4.40326904]
[1757418129923,7.22,217.91,217.88,7.67]
[1757418130122,177.38434168,217.92,217.83,7.67]
[1757418130123,1.92905017,217.9,217.83,7.67]
[1757418130319,1.92905017,217.9,217.84,4.40469545]
[1757418130523,1.92905017,217.9,217.85,4.40469545]
[1757418130827,7.22,217.89,217.86,4.40469545]
[1757418131023,7.22,217.87,217.8,13.73075017]
[1757418131322,7.22,217.87,217.81,4.40461016]
[1757418131522,7.22,217.87,217.82,4.40461016]
[1757418131826,7.22,217.87,217.84,7.67]
[1757418132126,7.22,217.87,217.85,4.40461016]
[1757418132425,7.22,217.87,217.86,4.40461016]
[1757418132822,7.22,217.89,217.86,4.40461016]
[1757418133017,7.22,217.89,217.82,7.67]
[1757418133217,7.22,217.89,217.84,7.67]
[1757418133419,7.22,217.89,217.85,4.40459885]
[1757418133626,7.22,217.89,217.86,11.94459885]
[1757418133827,7.39,217.91,217.87,4.40459885]
[1757418134027,179.31339185,217.92,217.88,4.40459885]
[1757418134227,7.39,217.91,217.83,9.46905017]
[1757418134428,7.39,217.91,217.84,4.40452468]
[1757418134623,7.39,217.91,217.85,4.40452468]
[1757418134821,179.31339185,217.92,217.86,4.40452468]
[1757418135024,179.31339185,217.92,217.87,4.40452468]
[1757418135325,7.39,217.91,217.83,7.54]
[1757418135525,7.39,217.91,217.84,4.40471892]
[1757418135725,1.92905017,217.9,217.85,4.40471892]
[1757418135928,7.39,217.89,217.86,4.40471892]
[1757418136125,9.31905017,217.88,217.87,4.40471892]
[1757418137733,9.31905017,217.88,217.8,9.46905017]
[1757418138029,9.31905017,217.88,217.81,4.40537291]
[1757418138224,9.31905017,217.88,217.8,7.54]
[1757418138225,9.31905017,217.88,217.82,4.40537291]
[1757418138421,7.39,217.87,217.83,4.40537291]
[1757418138624,7.39,217.85,217.84,4.40537291]
[1757418139131,7.39,217.85,217.8,7.54]
[1757418139424,1.92905017,217.86,217.81,4.40416817]
[1757418139631,1.92905017,217.86,217.82,4.40433364]
[1757418139931,7.39,217.86,217.8,7.54]
[1757418140229,9.31905017,217.87,217.81,4.40421983]
[1757418140531,1.92905017,217.87,217.82,4.40421983]
[1757418140731,7.39,217.86,217.79,7.54]
[1757418140921,7.39,217.86,217.8,4.40353466]
[1757418141126,7.39,217.86,217.81,4.40353466]
[1757418141325,7.39,217.84,217.82,4.40353466]
[1757418141630,7.39,217.84,217.79,7.54]
[1757418141831,7.39,217.84,217.81,7.54]
[1757418142031,7.39,217.84,217.82,4.40294289]
[1757418142231,7.39,217.84,217.81,7.54]
[1757418142529,7.39,217.84,217.82,4.40242928]
[1757418142722,7.39,217.84,217.81,7.54]
[1757418142926,7.39,217.84,217.82,4.40242928]
[1757418143229,7.39,217.84,217.81,7.54]
[1757418143430,7.39,217.84,217.82,4.40198689]
[1757418143626,7.39,217.84,217.81,7.54]
[1757418143927,7.39,217.84,217.82,4.40198689]
[1757418144125,7.39,217.84,217.81,7.54]
[1757418144318,7.39,217.84,217.82,4.40166419]
[1757418144520,7.39,217.84,217.78,1.92905017]
[1757418144723,7.39,217.84,217.8,7.54]
[1757418144926,7.39,217.84,217.79,4.4016104]
[1757418144927,7.39,217.84,217.81,11.9416104]
[1757418145225,7.39,217.84,217.82,4.4016104]
[1757418145427,7.39,217.84,217.81,7.54]
[1757418145629,7.39,217.84,217.82,4.40129568]
[1757418145829,7.39,217.84,217.81,7.54]
[1757418146130,7.39,217.84,217.82,4.40129568]
[1757418146331,7.39,217.84,217.81,7.54]
[1757418146632,7.39,217.84,217.82,4.40102111]
[1757418146931,7.39,217.84,217.78,1.92905017]
[1757418147133,7.39,217.84,217.79,4.40102179]
[1757418147322,1.92905017,217.85,217.8,4.40102179]
[1757418147522,9.31905017,217.85,217.82,7.54]
[1757418147933,7.39,217.85,217.82,7.54]
[1757418148634,7.39,217.85,217.79,7.54]
[1757418148834,7.39,217.85,217.8,4.40083031]
[1757418149035,7.39,217.85,217.82,7.54]
[1757418149232,7.39,217.85,217.83,4.42123638]
[1757418149431,7.39,217.85,217.82,7.54]
[1757418149731,7.39,217.85,217.83,4.41837933]
[1757418149933,7.39,217.85,217.82,7.54]
[1757418150133,7.39,217.85,217.78,1.92905017]
[1757418150134,7.39,217.84,217.83,4.41870805]
[1757418150334,7.39,217.84,217.65,5.14008538]
[1757418150335,9.31905017,217.85,217.76,7.54]
[1757418150635,9.31905017,217.85,217.78,7.54]
[1757418150830,9.31905017,217.85,217.79,4.41893999]
[1757418151036,1.92905017,217.85,217.8,4.41893999]
[1757418151228,7.39,217.84,217.81,4.41893999]
[1757418151431,7.39,217.84,217.78,7.54]
[1757418151627,7.39,217.84,217.79,4.41915793]
[1757418151933,1.92905017,217.85,217.8,4.41915793]
[1757418152126,7.39,217.84,217.78,7.54]
[1757418152338,9.31905017,217.85,217.79,4.26573763]
[1757418152535,7.39,217.84,217.81,7.54]
[1757418152938,1.92905017,217.85,217.81,7.54]
[1757418153335,7.39,217.84,217.76,7.54]
[1757418153536,7.39,217.84,217.78,7.54]
[1757418153835,9.31905017,217.85,217.79,4.26625172]
[1757418154034,9.31905017,217.85,217.78,7.54]
[1757418154235,9.31905017,217.85,217.79,4.26655696]
[1757418154436,9.31905017,217.85,217.78,7.54]
[1757418154737,9.31905017,217.85,217.79,4.26653746]
[1757418154937,9.31905017,217.85,217.78,7.54]
[1757418155137,9.31905017,217.85,217.79,4.26594741]
[1757418155437,9.31905017,217.85,217.78,7.54]
[1757418155637,9.31905017,217.85,217.79,4.26598798]
[1757418155838,9.31905017,217.85,217.78,7.54]
[1757418156039,9.31905017,217.85,217.79,4.26601741]
[1757418156244,9.31905017,217.85,217.78,7.54]
[1757418156536,9.31905017,217.85,217.79,4.26616356]
[1757418156737,9.31905017,217.85,217.78,7.54]
[1757418156932,9.31905017,217.85,217.79,4.26615892]
[1757418157130,9.31905017,217.85,217.78,7.54]
[1757418157335,9.31905017,217.85,217.79,4.26639874]
[1757418157537,9.31905017,217.85,217.78,7.54]
[1757418157737,9.31905017,217.85,217.79,4.26639874]
[1757418157938,9.31905017,217.85,217.78,7.54]
[1757418158140,9.31905017,217.85,217.79,4.26639874]
[1757418158437,9.31905017,217.85,217.78,7.54]
[1757418158638,9.31905017,217.85,217.79,4.26661502]
[1757418158831,9.31905017,217.85,217.78,7.54]
[1757418159036,9.31905017,217.85,217.79,4.26671332]
[1757418159236,14.47112627,217.85,217.78,7.54]
[1757418159436,14.47112627,217.85,217.79,4.26715855]
[1757418159642,14.47112627,217.85,217.78,7.54]
[1757418159935,14.47112627,217.85,217.79,4.26717111]
[1757418160136,1.92905017,217.83,217.76,7.54]
[1757418160440,1.92905017,217.83,217.78,7.54]
[1757418160639,7.39,217.82,217.79,11.80704481]
[1757418160842,7.39,217.82,217.79,7.54]
[1757418161241,7.39,217.82,217.76,7.54]
[1757418161540,1.92905017,217.83,217.77,4.26740045]
[1757418161743,7.39,217.8,217.74,7.54]
[1757418162040,7.39,217.78,217.75,11.80841274]
[1757418162241,7.39,217.78,217.76,11.80841274]
[1757418162438,7.39,217.78,217.76,7.54]
[1757418164744,9.44905017,217.79,217.71,7.16]
[1757418165045,9.44905017,217.79,217.73,7.16]
[1757418165343,7.52,217.78,217.75,7.16]
[1757418166344,7.52,217.78,217.71,7.16]
[1757418166544,1.92905017,217.79,217.73,7.16]
[1757418166742,9.44905017,217.79,217.75,7.16]
[1757418166945,9.44905017,217.79,217.71,7.16]
[1757418167145,9.44905017,217.79,217.73,7.16]
[1757418167446,9.44905017,217.79,217.74,4.26762694]
[1757418167646,9.44905017,217.79,217.76,7.16]
[1757418167850,7.52,217.78,217.71,7.16]
[1757418168151,7.52,217.78,217.72,4.26696156]
[1757418168348,7.52,217.78,217.73,4.26696156]
[1757418168545,7.52,217.78,217.75,7.16]
[1757418168751,1.92905017,217.79,217.75,7.16]
[1757418169252,7.52,217.78,217.75,7.16]
[1757418171345,3.01842752,217.81,217.75,7.16]
[1757418171743,7.52,217.8,217.75,7.16]
[1757418172652,3.01842752,217.81,217.75,7.16]
[1757418173043,7.52,217.8,217.75,7.16]
[1757418173247,3.01842752,217.81,217.75,7.16]
[1757418173445,7.52,217.8,217.75,7.16]
[1757418173651,3.01842752,217.81,217.75,7.16]
[1757418173850,3.01842752,217.81,217.68,4.1341]
[1757418173851,7.52,217.8,217.69,7.16]
[1757418174050,7.52,217.8,217.7,4.26492591]
[1757418174250,7.52,217.8,217.72,7.16]
[1757418174458,7.52,217.8,217.73,4.26492591]
[1757418174662,7.52,217.8,217.74,4.26492591]
[1757418174862,7.52,217.8,217.72,7.16]
[1757418175158,7.52,217.8,217.73,4.26567079]
[1757418175358,7.52,217.8,217.74,4.26567079]
[1757418175556,7.52,217.8,217.72,7.16]
[1757418175754,7.52,217.8,217.73,4.26587424]
[1757418175955,7.52,217.8,217.74,4.26587424]
[1757418176157,7.52,217.8,217.72,7.16]
[1757418176460,7.52,217.8,217.73,4.26605749]
[1757418176655,7.52,217.8,217.74,4.26605749]
[1757418176863,7.52,217.8,217.72,7.16]
[1757418177052,7.52,217.8,217.73,4.26605759]
[1757418177257,7.52,217.8,217.74,4.26605759]
[1757418177453,7.52,217.8,217.72,7.16]
[1757418177655,7.52,217.8,217.73,4.26646868]
[1757418177854,7.52,217.8,217.74,4.26646868]
[1757418178065,7.52,217.8,217.72,7.16]
[1757418178265,7.52,217.8,217.73,4.26646868]
[1757418178563,7.52,217.8,217.74,4.26646868]
[1757418178756,7.52,217.8,217.72,7.16]
[1757418178957,7.52,217.8,217.73,4.26684062]
[1757418179166,7.52,217.8,217.74,4.26684062]
[1757418179368,7.52,217.8,217.72,7.16]
[1757418179567,7.52,217.8,217.73,4.26049108]
[1757418179766,7.52,217.8,217.74,4.26049108]
[1757418179967,7.52,217.8,217.73,7.16]
[1757418180164,7.52,217.8,217.74,4.26048937]
[1757418180367,7.52,217.8,217.73,7.16]
[1757418180566,7.52,217.8,217.74,4.2615625]
[1757418180767,7.52,217.8,217.73,7.16]
[1757418180967,7.52,217.8,217.74,4.2615625]
[1757418181163,7.52,217.8,217.73,7.16]
[1757418181768,10.53842752,217.8,217.73,7.16]
[1757418183069,10.53842752,217.8,217.67,7.16]
[1757418183070,7.52,217.78,217.67,7.16]
[1757418183271,7.52,217.78,217.68,4.26280442]
[1757418183466,7.52,217.78,217.69,11.42280442]
[1757418183769,7.52,217.78,217.7,4.26280442]
[1757418183968,7.63303186,217.83,217.67,7.16]
[1757418183969,7.52,217.76,217.67,7.16]
[1757418184174,3.01842752,217.74,217.68,4.26314927]
[1757418184368,3.01842752,217.74,217.67,7.16]
[1757418184369,7.52,217.73,217.67,7.16]
[1757418185170,7.52,217.73,217.59,7.16]
[1757418185473,7.52,217.73,217.61,7.16]
[1757418185674,7.52,217.73,217.62,4.26035179]
[1757418185870,7.52,217.71,217.63,11.42035179]
[1757418186173,7.52,217.71,217.64,4.26035179]
[1757418186368,7.52,217.71,217.65,4.26035179]
[1757418186566,7.52,217.71,217.63,7.16]
[1757418186769,7.52,217.71,217.64,4.25842467]
[1757418186973,7.52,217.75,217.66,7.16]
[1757418187368,7.52,217.75,217.68,7.16]
[1757418191372,7.52,217.75,217.69,4.2549524]
[1757418191676,7.52,217.75,217.68,7.16]
[1757418191876,7.52,217.75,217.69,4.2546169]
[1757418192076,7.52,217.75,217.68,7.16]
[1757418192277,7.52,217.75,217.69,4.2544684]
[1757418192477,7.52,217.8,217.71,7.16]
[1757418194870,7.52,217.8,217.65,7.54]
[1757418195073,7.52,217.8,217.67,7.54]
[1757418195270,7.52,217.8,217.69,7.54]
[1757418195476,7.52,217.8,217.7,4.25551742]
[1757418195679,7.52,217.8,217.71,4.25551742]
[1757418195879,7.52,217.8,217.69,7.54]
[1757418196179,7.52,217.8,217.7,4.2561808]
[1757418196377,7.52,217.8,217.71,4.2561808]
[1757418196580,7.52,217.8,217.69,7.54]
[1757418196775,7.52,217.8,217.7,4.25666307]
[1757418196974,7.52,217.8,217.71,4.25666307]
[1757418197176,7.52,217.8,217.71,7.54]
[1757418199481,12.6720761,217.8,217.71,7.54]
[1757418200885,7.67,217.78,217.71,7.54]
[1757418202485,7.67,217.78,217.72,4.26013627]
[1757418202784,7.67,217.78,217.71,7.54]
[1757418202987,7.67,217.78,217.72,4.25991214]
[1757418203187,7.67,217.78,217.71,7.54]
[1757418206388,3.01842752,217.76,217.62,7.54]
[1757418206588,7.67,217.75,217.64,7.54]
[1757418206790,7.67,217.75,217.66,7.54]
[1757418207087,7.67,217.75,217.68,7.54]
[1757418207288,7.67,217.75,217.69,4.26373135]
[1757418207496,7.67,217.75,217.68,7.54]
[1757418207783,7.67,217.75,217.69,4.26417327]
[1757418207992,7.67,217.75,217.68,7.54]
[1757418208187,7.67,217.75,217.69,4.26417327]
[1757418208387,7.67,217.75,217.68,7.54]
[1757418208589,12.8220761,217.75,217.68,7.54]
[1757418209088,7.67,217.72,217.6,7.54]
[1757418209289,7.67,217.72,217.62,7.54]
[1757418209594,7.67,217.72,217.64,7.54]
[1757418209790,7.67,217.72,217.65,4.2640033]
[1757418209989,7.67,217.72,217.66,4.2640033]
[1757418210191,7.67,217.72,217.64,7.54]
[1757418210492,7.67,217.72,217.65,4.26014177]
[1757418210689,7.67,217.72,217.66,4.26014177]
[1757418210892,7.67,217.72,217.64,7.54]
[1757418211093,7.67,217.72,217.66,7.54]
[1757418212689,7.67,217.7,217.67,4.25964168]
[1757418212894,7.67,217.66,217.57,7.54]
[1757418215694,7.67,217.71,217.57,7.54]
[1757418218586,7.67,217.71,217.59,3.01842752]
[1757418218890,7.67,217.71,217.6,7.54]
[1757418220292,7.67,217.76,217.62,3.01842752]
[1757418220492,7.67,217.76,217.63,7.54]
[1757418221195,7.67,217.76,217.66,7.54]
[1757418222396,7.67,217.82,217.66,7.54]
[1757418222594,7.67,217.82,217.68,3.01842752]
[1757418222800,7.67,217.82,217.69,7.54]
[1757418226995,10.68842752,217.82,217.69,7.54]
[1757418228800,7.36,217.8,217.69,7.54]
[1757418232404,7.36,217.8,217.73,9.07121456]
[1757418236799,333.17737581,217.95,217.62,3.01842752]
[1757418236800,5.14453965,217.86,217.8,7.14]
[1757418237108,9.29121456,217.87,217.8,9.07121456]
[1757418237908,1.93121456,217.85,217.8,7.14]
[1757418238103,7.36,217.87,217.63,7.14]
[1757418238104,7.36,217.82,217.63,7.14]
[1757418238408,7.36,217.82,217.62,3.85830437]
[1757418238409,9.29121456,217.8,217.73,9.07121456]
[1757418239211,9.29121456,217.8,217.73,7.14]
[1757418249521,1.93121456,217.78,217.73,7.14]
[1757418249721,1.93121456,217.76,217.68,1.93121456]
[1757418249923,1.93121456,217.76,217.69,7.14]
[1757418250122,7.36,217.75,217.69,7.14]
[1757418251028,1.93121456,217.79,217.7,1.93121456]
[1757418251221,1.93121456,217.79,217.71,7.14]
[1757418251926,9.29121456,217.79,217.71,7.14]
[1757418255727,7.61,217.85,217.72,1.93121456]
[1757418255928,7.61,217.85,217.57,5.14008538]
[1757418255929,1.93121456,217.82,217.75,7.58]
[1757418256231,1.93121456,217.84,217.75,7.58]
[1757418257234,1.93121456,217.84,217.76,1.93121456]
[1757418257426,1.93121456,217.84,217.77,7.58]
[1757418257830,7.61,217.85,217.77,7.58]
[1757418258129,7.61,217.83,217.77,7.58]
[1757418262533,14.68575421,217.86,217.77,7.58]
[1757418263433,7.63303186,217.89,217.77,7.58]
[1757418263434,7.61,217.83,217.77,7.58]
[1757418265326,12.75453965,217.83,217.77,7.58]
[1757418265632,1.93121456,217.82,217.77,7.58]
[1757418265826,7.61,217.81,217.77,7.58]
[1757418266030,7.61,217.81,217.74,7.58]
[1757418266632,7.61,217.81,217.76,7.58]
[1757418267033,14.68575421,217.84,217.76,7.58]
[1757418267334,7.61,217.84,217.78,7.58]
[1757418275134,7.61,217.84,217.79,1.93121456]
[1757418275339,7.61,217.87,217.8,7.58]
[1757418277838,1.93121456,217.86,217.8,7.58]
[1757418279241,7.61,217.85,217.79,1.93121456]
[1757418279431,7.61,217.85,217.78,7.58]
[1757418284235,5.14453965,217.87,217.78,7.58]
[1757418284441,7.68,217.86,217.8,7.52]
[1757418295842,5.14453965,217.88,217.8,7.52]
[1757418296044,42.58453965,217.89,217.8,7.52]
[1757418296245,5.14453965,217.88,217.8,7.52]
[1757418296444,7.68,217.87,217.8,7.52]
[1757418302854,5.14453965,217.89,217.8,7.52]
[1757418303352,5.14453965,217.9,217.8,7.52]
[1757418303953,5.14453965,217.9,217.82,7.52]
[1757418304852,119.36,217.91,217.82,7.52]
[1757418304853,124.50453965,217.91,217.82,7.52]
[1757418305154,12.82453965,217.91,217.82,7.52]
[1757418305553,5.14453965,217.93,217.82,7.52]
[1757418305750,124.48453965,217.94,217.82,7.52]
[1757418306954,124.48453965,217.94,217.83,7.52]
[1757418307958,124.48453965,217.94,217.83,10.53615729]
[1757418308259,119.34,217.94,217.83,3.01615729]
[1757418308457,119.34,217.94,217.84,7.52]
[1757418314257,119.34,217.94,217.84,11.6507]
[1757418314461,119.34,217.94,217.84,7.52]
[1757418315062,119.34,217.94,217.85,4.1304]
[1757418315362,119.34,217.94,217.86,7.71]
[1757418316265,7.04,217.97,217.9,7.71]
[1757418317162,7.04,217.97,217.86,7.71]
[1757418319367,7.04,217.97,217.89,7.71]
[1757418326467,7.04,217.97,217.9,4.1296]
[1757418326668,7.04,217.97,217.91,7.71]
[1757418330569,420.72,218.0,217.91,7.71]
[1757418330768,420.72,218.0,217.91,7.14545729]
[1757418330967,420.72,218.0,217.92,7.71]
[1757418331968,7.04,217.99,217.92,7.71]
[1757418332175,7.04,218.04,217.97,3.01615729]
[1757418332372,7.04,218.04,217.95,7.71]
[1757418332770,7.04,218.04,217.95,11.8385]
[1757418333078,7.04,218.04,217.97,3.01615729]
[1757418333274,7.04,218.07,217.98,7.71]
[1757418334571,7.04,218.07,217.94,7.71]
[1757418334776,10.05615729,218.07,217.94,7.71]
[1757418335473,7.04,218.07,217.94,7.71]
[1757418335870,7.04,218.07,217.96,3.01615729]
[1757418336274,7.04,218.07,217.97,7.71]
[1757418339471,7.04,218.07,217.93,3.01615729]
[1757418339671,7.04,218.07,217.94,7.71]
[1757418341878,112.02,218.08,217.94,4.1288]
[1757418342174,7.04,218.07,217.95,7.71]
[1757418342681,7.04,218.07,217.96,7.71]
[1757418343279,7.04,218.07,217.97,7.71]
[1757418344381,7.04,218.07,217.98,7.29]
[1757418348975,7.04,218.07,217.99,7.29]
[1757418350984,7.04,218.07,218.01,7.3193611]
[1757418352884,0.0291561,218.06,218.01,0.0293611]
[1757418353481,0.0291561,218.06,218.02,7.29]
[1757418353684,0.0291561,218.06,218.01,0.0293611]
[1757418353876,0.0291561,218.06,218.02,7.29]
[1757418354080,0.0291561,218.06,218.01,0.0293611]
[1757418354081,0.0291561,218.06,218.03,3.01615729]
[1757418354280,0.0291561,218.06,218.04,7.29]
[1757418354775,0.0291561,218.06,218.03,7.29]
[1757418354976,0.0291561,218.06,218.01,3.04551839]
[1757418354977,0.0291561,218.06,218.01,0.0293611]
[1757418355181,0.0291561,218.06,218.02,4.1272]
[1757418355582,0.0291561,218.06,218.03,7.29]
[1757418355778,0.0291561,218.06,218.02,4.1272]
[1757418355977,0.0291561,218.06,218.02,7.29]
[1757418356182,7.7091561,218.06,218.02,7.29]
[1757418357887,7.7091561,218.06,218.01,1.95565704]
[1757418358389,0.0291561,218.06,218.01,1.95565704]
[1757418358587,0.0291561,218.06,218.04,7.29]
[1757418360992,0.0291561,218.06,218.03,1.92629594]
[1757418361292,0.0291561,218.06,218.05,9.21629594]
[1757418361991,0.0291561,218.06,218.05,7.29]
[1757418363591,0.0291561,218.06,218.04,7.29]
[1757418365992,0.0291561,218.06,218.03,1.92629594]
[1757418366288,0.0291561,218.06,218.04,7.29]
[1757418366695,0.0291561,218.06,218.03,1.92629594]
[1757418367396,0.0291561,218.06,218.04,7.29]
[1757418367894,7.7091561,218.06,218.04,7.29]
[1757418368495,7.7091561,218.06,218.02,7.29]
[1757418368996,7.7091561,218.06,218.01,1.95565704]
[1757418369291,0.0291561,218.06,218.01,6.08315704]
[1757418370491,0.0291561,218.06,218.02,7.29]
[1757418370889,0.0291561,218.06,218.01,1.95565704]